bitfinex/quotes_BTCUSD_20250802
["timestamp","ask_amount","ask_price","bid_price","bid_amount"]
[1754150011151,1.60366432,113250.0,113240.0,0.03232342]
[1754150011368,1.68786421,113250.0,113240.0,0.03232342]
[1754150012070,1.60366432,113250.0,113240.0,0.03232342]
[1754150013022,1.60366432,113250.0,113240.0,0.03236342]
[1754150013990,1.60366479,113250.0,113240.0,0.03236342]
[1754150014996,1.60045479,113250.0,113240.0,0.03236342]
[1754150015234,1.60045479,113250.0,113240.0,0.03452342]
[1754150015695,1.68786468,113250.0,113240.0,0.03236342]
[1754150016858,1.60366479,113250.0,113240.0,0.03236342]
[1754150020154,1.61524479,113250.0,113240.0,0.00018342]
[1754150021095,0.95831827,113250.0,113240.0,0.00018342]
[1754150021328,1.61524479,113250.0,113240.0,0.00018342]
[1754150021567,1.60366479,113250.0,113240.0,0.00018342]
[1754150021776,1.68786468,113250.0,113240.0,0.00018342]
[1754150021986,1.69944468,113250.0,113240.0,0.00018342]
[1754150022445,1.68786468,113250.0,113240.0,0.00018342]
[1754150022662,1.68786441,113250.0,113240.0,0.00018342]
[1754150022877,1.68786441,113250.0,113240.0,0.03381342]
[1754150023090,0.946738,113250.0,113240.0,0.03381342]
[1754150023299,1.60366452,113250.0,113240.0,0.03381342]
[1754150024042,1.60045452,113250.0,113240.0,0.03597342]
[1754150025109,1.23422752,113250.0,113240.0,0.03597342]
[1754150025533,1.60045389,113250.0,113240.0,0.03597342]
[1754150025735,1.60048089,113250.0,113240.0,0.03597342]
[1754150026579,1.23425389,113250.0,113240.0,0.03597342]
[1754150026777,1.60048089,113250.0,113240.0,0.03892342]
[1754150027198,1.58665355,113250.0,113240.0,0.03892342]
[1754150027640,1.22042655,113250.0,113240.0,0.03892342]
[1754150027847,1.58665355,113250.0,113240.0,0.03892342]
[1754150028421,1.58665355,113250.0,113240.0,0.03597342]
[1754150028830,1.01392692,113250.0,113240.0,0.03597342]
[1754150029046,1.58385355,113250.0,113240.0,0.03892342]
[1754150030034,1.59980071,113250.0,113240.0,0.03892342]
[1754150030250,1.59980071,113250.0,113240.0,0.03597342]
[1754150031299,1.59980079,113250.0,113240.0,0.03597342]
[1754150031568,1.02707416,113250.0,113240.0,0.03597342]
[1754150031800,1.68400068,113250.0,113240.0,0.03597342]
[1754150031949,1.59980079,113250.0,113240.0,0.03597342]
[1754150033062,1.59980079,113250.0,113240.0,0.03892342]
[1754150034057,1.58597363,113250.0,113240.0,0.03597342]
[1754150034304,1.58597387,113250.0,113240.0,0.03597342]
[1754150036747,1.21974687,113250.0,113240.0,0.03597342]
[1754150036959,1.59980103,113250.0,113240.0,0.03597342]
[1754150040529,1.59980035,113250.0,113240.0,0.03597342]
[1754150041954,1.23357143,113250.0,113240.0,0.03597342]
[1754150042211,1.59979843,113250.0,113240.0,0.03597342]
[1754150042445,1.68692832,113250.0,113240.0,0.00018342]
[1754150043617,1.68692832,113250.0,113240.0,0.03275342]
[1754150044303,1.60272843,113250.0,113240.0,0.03275342]
[1754150047106,1.23650143,113250.0,113240.0,0.03275342]
[1754150047332,1.60272843,113250.0,113240.0,0.03275342]
[1754150047760,1.6027174,113250.0,113240.0,0.03275342]
[1754150048208,1.5997874,113250.0,113240.0,0.03275342]
[1754150048424,1.5997874,113250.0,113240.0,0.03481342]
[1754150048640,1.59978137,113250.0,113240.0,0.03481342]
[1754150050461,0.94285485,113250.0,113240.0,0.03481342]
[1754150050690,0.79861485,113250.0,113240.0,0.03791342]
[1754150050916,1.24904418,113250.0,113240.0,0.03791342]
[1754150051133,1.26806071,113250.0,113240.0,0.03791342]
[1754150051599,0.93959477,113250.0,113240.0,0.03791342]
[1754150051824,1.26805803,113250.0,113240.0,0.03791342]
[1754150052271,1.2490415,113250.0,113240.0,0.03791342]
[1754150052492,0.92057824,113250.0,113240.0,0.03791342]
[1754150052702,1.2490415,113250.0,113240.0,0.03791342]
[1754150053360,0.77957824,113250.0,113240.0,0.03791342]
[1754150053587,0.58057824,113250.0,113240.0,0.03791342]
[1754150053806,1.23521434,113250.0,113240.0,0.03791342]
[1754150054311,1.21870137,113250.0,113240.0,0.03791342]
[1754150054578,0.90674172,113250.0,113240.0,0.03791342]
[1754150054800,1.23520498,113250.0,113240.0,0.03791342]
[1754150055282,1.21870137,113250.0,113240.0,0.03791342]
[1754150055536,1.64992544,113250.0,113240.0,0.03791342]
[1754150055990,1.56572555,113250.0,113240.0,0.03791342]
[1754150056623,1.56572408,113250.0,113240.0,0.03791342]
[1754150056835,1.21332378,113250.0,113240.0,0.03481342]
[1754150057045,1.57955078,113250.0,113240.0,0.03481342]
[1754150057254,1.57955078,113250.0,113240.0,0.03791342]
[1754150057682,1.23458807,113250.0,113240.0,0.03791342]
[1754150057892,1.23252807,113250.0,113240.0,0.03791342]
[1754150058109,0.90406481,113250.0,113240.0,0.03791342]
[1754150058329,1.23244807,113250.0,113240.0,0.03791342]
[1754150058545,1.22419372,113250.0,113240.0,0.03791342]
[1754150059427,1.22418861,113250.0,113240.0,0.03791342]
[1754150061420,0.89572535,113250.0,113240.0,0.03791342]
[1754150061878,1.22418861,113250.0,113240.0,0.03791342]
[1754150063107,0.89572535,113250.0,113240.0,0.03791342]
[1754150063333,1.22418861,113250.0,113240.0,0.03791342]
[1754150064259,0.85768261,113250.0,113240.0,0.03791342]
[1754150064499,0.88424561,113250.0,113240.0,0.03791342]
[1754150064937,0.88412561,113250.0,113240.0,0.03791342]
[1754150065846,0.55566235,113250.0,113240.0,0.03791342]
[1754150066087,0.88412561,113250.0,113240.0,0.03791342]
[1754150066533,1.22412561,113250.0,113240.0,0.03791342]
[1754150067471,1.21029891,113250.0,113240.0,0.03791342]
[1754150067686,1.21029891,113250.0,113240.0,0.03481342]
[1754150068378,0.84407191,113250.0,113240.0,0.03481342]
[1754150068603,1.21029891,113250.0,113240.0,0.03481342]
[1754150070210,1.22412524,113250.0,113240.0,0.03481342]
[1754150071079,1.22412524,113250.0,113240.0,0.03789342]
[1754150072146,1.22412524,113250.0,113240.0,0.03481342]
[1754150076785,1.21029891,113250.0,113240.0,0.03481342]
[1754150078578,1.21349891,113250.0,113240.0,0.03481342]
[1754150078827,1.2976988,113250.0,113240.0,0.03275342]
[1754150080213,1.30594851,113250.0,113240.0,0.03275342]
[1754150081164,1.31977489,113250.0,113240.0,0.03275342]
[1754150082115,1.64823815,113250.0,113240.0,0.03275342]
[1754150082358,1.66474304,113250.0,113240.0,0.03275342]
[1754150082604,1.66474945,113250.0,113240.0,0.03275342]
[1754150083733,1.65092307,113250.0,113240.0,0.03275342]
[1754150084169,1.32245981,113250.0,113240.0,0.03275342]
[1754150084868,1.23825992,113250.0,113240.0,0.03275342]
[1754150085337,0.87203292,113250.0,113240.0,0.03275342]
[1754150085357,0.90979666,113250.0,113240.0,0.03275342]
[1754150085608,0.90980947,113250.0,113240.0,0.03275342]
[1754150085854,1.23827273,113250.0,113240.0,0.03275342]
[1754150086103,0.54358247,113250.0,113240.0,0.03275342]
[1754150086335,1.20050899,113250.0,113240.0,0.03275342]
[1754150086800,1.66476236,113250.0,113240.0,0.03275342]
[1754150087045,1.25209921,113250.0,113240.0,0.03275342]
[1754150088179,0.88587221,113250.0,113240.0,0.03275342]
[1754150088397,1.25209921,113250.0,113240.0,0.03275342]
[1754150089360,1.58056247,113250.0,113240.0,0.03275342]
[1754150089610,1.59120247,113250.0,113240.0,0.00018342]
[1754150089849,1.67540236,113250.0,113240.0,0.00018342]
[1754150091324,1.01847584,113250.0,113240.0,0.00018342]
[1754150091562,1.67540236,113250.0,113240.0,0.00018342]
[1754150092509,1.67536236,113250.0,113240.0,0.00018342]
[1754150093758,1.66472236,113250.0,113240.0,0.00018342]
[1754150094000,1.65089588,113250.0,113240.0,0.00018342]
[1754150094268,1.56669599,113250.0,113240.0,0.00018342]
[1754150094506,1.56669599,113250.0,113240.0,0.03440342]
[1754150096610,1.42593599,113250.0,113240.0,0.03440342]
[1754150096860,1.56669599,113250.0,113240.0,0.03440342]
[1754150098215,1.58052309,113250.0,113240.0,0.03440342]
[1754150098660,1.66472298,113250.0,113240.0,0.03440342]
[1754150100060,1.66469926,113250.0,113240.0,0.03440342]
[1754150100520,1.29847226,113250.0,113240.0,0.03440342]
[1754150100855,1.66469926,113250.0,113240.0,0.03440342]
[1754150101600,1.66352926,113250.0,113240.0,0.03440342]
[1754150102544,1.57928937,113250.0,113240.0,0.03440342]
[1754150102788,1.43856937,113250.0,113240.0,0.03440342]
[1754150103030,1.57928937,113250.0,113240.0,0.03440342]
[1754150103250,1.21306237,113250.0,113240.0,0.03440342]
[1754150103674,1.56546227,113250.0,113240.0,0.03440342]
[1754150104594,1.28343516,113250.0,113240.0,0.03440342]
[1754150104815,1.64966216,113250.0,113240.0,0.03440342]
[1754150105090,1.56546227,113250.0,113240.0,0.03440342]
[1754150107720,1.56546108,113250.0,113240.0,0.03440342]
[1754150107963,1.57928816,113250.0,113240.0,0.03440342]
[1754150108484,1.57608816,113250.0,113240.0,0.03440342]
[1754150108708,1.20986116,113250.0,113240.0,0.03440342]
[1754150108947,1.43536816,113250.0,113240.0,0.03440342]
[1754150109174,1.00332153,113250.0,113240.0,0.03440342]
[1754150109416,1.57604816,113250.0,113240.0,0.03440342]
[1754150110345,1.43536816,113250.0,113240.0,0.03440342]
[1754150110580,1.57604773,113250.0,113240.0,0.03934342]
[1754150110841,1.57604773,113250.0,113240.0,0.03636342]
[1754150111313,0.91912121,113250.0,113240.0,0.03636342]
[1754150111536,1.66024762,113250.0,113240.0,0.03636342]
[1754150111762,1.29402034,113250.0,113240.0,0.03636342]
[1754150112008,1.57604745,113250.0,113240.0,0.03636342]
[1754150112936,0.91912093,113250.0,113240.0,0.03636342]
[1754150113159,1.57604745,113250.0,113240.0,0.03636342]
[1754150113429,1.57604745,113250.0,113240.0,0.03934342]
[1754150114411,1.24669419,113250.0,113240.0,0.03934342]
[1754150116365,1.57515745,113250.0,113240.0,0.03934342]
[1754150116607,1.66122734,113250.0,113240.0,0.03934342]
[1754150117874,1.29500034,113250.0,113240.0,0.03934342]
[1754150118088,1.66122734,113250.0,113240.0,0.03934342]
[1754150118571,1.64740026,113250.0,113240.0,0.03934342]
[1754150118807,1.66122731,113250.0,113240.0,0.03934342]
[1754150120728,1.67395731,113250.0,113240.0,0.00018342]
[1754150120950,1.69297617,113250.0,113240.0,0.00018342]
[1754150121166,1.67914912,113250.0,113240.0,0.00018342]
[1754150121602,1.69297679,113250.0,113240.0,0.00018342]
[1754150122816,1.03605027,113250.0,113240.0,0.00018342]
[1754150123065,1.5990669,113250.0,113240.0,0.03264342]
[1754150123302,0.92525271,113250.0,113240.0,0.03758342]
[1754150123511,1.23282711,113250.0,113240.0,0.03758342]
[1754150123721,0.86660011,113250.0,113240.0,0.03758342]
[1754150123942,1.19506337,113250.0,113240.0,0.03758342]
[1754150124152,1.56129037,113250.0,113240.0,0.03758342]
[1754150124358,1.23282711,113250.0,113240.0,0.03758342]
[1754150124935,1.64549026,113250.0,113240.0,0.03758342]
[1754150125192,1.64762949,113250.0,113240.0,0.03758342]
[1754150125339,1.64762949,113250.0,113240.0,0.03460342]
[1754150125559,1.64762949,113250.0,113240.0,0.03264342]
[1754150125791,1.65071949,113250.0,113240.0,0.00018342]
[1754150126010,1.65071949,113250.0,113240.0,0.03775342]
[1754150126011,1.64762949,113250.0,113240.0,0.03775342]
[1754150126936,1.64762949,113250.0,113240.0,0.03469342]
[1754150127553,1.6614566,113250.0,113240.0,0.03469342]
[1754150127770,1.5208166,113250.0,113240.0,0.03469342]
[1754150127980,1.2951896,113250.0,113240.0,0.03469342]
[1754150128187,1.6614166,113250.0,113240.0,0.03469342]
[1754150128407,1.66141813,113250.0,113240.0,0.03469342]
[1754150133493,1.66141813,113250.0,113240.0,0.03265342]
[1754150134042,1.65068102,113250.0,113240.0,0.03265342]
[1754150134248,1.28136402,113250.0,113240.0,0.03265342]
[1754150134452,1.64759102,113250.0,113240.0,0.03265342]
[1754150136241,1.28136402,113250.0,113240.0,0.03265342]
[1754150136445,0.9906645,113250.0,113240.0,0.03265342]
[1754150136707,1.64759102,113250.0,113240.0,0.03265342]
[1754150136908,1.66141813,113250.0,113240.0,0.03265342]
[1754150139801,1.66141813,113250.0,113240.0,0.03469342]
[1754150140653,1.66141813,113250.0,113240.0,0.03265342]
[1754150140870,1.68044776,113250.0,113240.0,0.03265342]
[1754150143708,1.66662065,113250.0,113240.0,0.03265342]
[1754150144161,1.66971065,113250.0,113240.0,0.00018342]
[1754150144571,1.66971065,113250.0,113240.0,0.03265342]
[1754150145453,1.66972999,113250.0,113240.0,0.03265342]
[1754150145881,1.66972999,113250.0,113240.0,0.00018342]
[1754150146311,1.67763999,113250.0,113240.0,0.00018342]
[1754150146800,1.02071347,113250.0,113240.0,0.00018342]
[1754150147024,1.67763999,113250.0,113240.0,0.00018342]
[1754150147455,1.31141299,113250.0,113240.0,0.00018342]
[1754150147664,1.67763999,113250.0,113240.0,0.00018342]
[1754150148094,1.69146765,113250.0,113240.0,0.00018342]
[1754150148314,1.6914623,113250.0,113240.0,0.00018342]
[1754150148531,1.6835523,113250.0,113240.0,0.03265342]
[1754150149643,1.47503024,113250.0,113240.0,0.03265342]
[1754150149851,1.52061378,113250.0,113240.0,0.03265342]
[1754150150085,0.86368726,113250.0,113240.0,0.03265342]
[1754150150337,1.52061179,113250.0,113240.0,0.03265342]
[1754150151997,1.52061179,113250.0,113240.0,0.00018342]
[1754150152252,1.52852179,113250.0,113240.0,0.00018342]
[1754150153698,1.69161678,113240.0,113230.0,0.0005]
[1754150153929,1.51397879,113240.0,113230.0,0.0005]
[1754150154233,1.53667821,113240.0,113230.0,0.03297]
[1754150154472,1.55390721,113240.0,113230.0,0.03297]
[1754150154951,1.55390721,113240.0,113230.0,0.03397]
[1754150155179,0.89698069,113240.0,113230.0,0.03497]
[1754150155424,1.55390721,113240.0,113230.0,0.03497]
[1754150156377,1.55390721,113240.0,113230.0,0.0490252]
[1754150156853,1.6381071,113240.0,113230.0,0.0490252]
[1754150159964,1.6381015,113240.0,113230.0,0.0490252]
[1754150160834,1.15779101,113240.0,113230.0,0.0490252]
[1754150161052,1.66020874,113240.0,113230.0,0.0490252]
[1754150161271,1.6412015,113240.0,113230.0,0.0490252]
[1754150161510,1.66020804,113240.0,113230.0,0.0490252]
[1754150161766,1.66019193,113240.0,113230.0,0.0490252]
[1754150162962,1.29396493,113240.0,113230.0,0.0490252]
[1754150163187,1.67402026,113240.0,113230.0,0.0490252]
[1754150163633,1.66019193,113240.0,113230.0,0.0490252]
[1754150164304,1.98865519,113240.0,113230.0,0.0165552]
[1754150164526,1.99771519,113240.0,113230.0,0.0165552]
[1754150164947,1.98865519,113240.0,113230.0,0.0165552]
[1754150165168,1.98865519,113240.0,113230.0,0.0497852]
[1754150165832,1.66019193,113240.0,113230.0,0.0497852]
[1754150166723,1.62964865,113240.0,113230.0,0.0497852]
[1754150167648,1.54544876,113240.0,113230.0,0.0497852]
[1754150167863,1.55927727,113240.0,113230.0,0.0497852]
[1754150168736,1.89927727,113240.0,113230.0,0.0497852]
[1754150170301,1.86834429,113240.0,113230.0,0.0497852]
[1754150170522,1.89925651,113240.0,113230.0,0.0497852]
[1754150170744,1.9834564,113240.0,113230.0,0.0497852]
[1754150171812,0.99806662,113240.0,113230.0,0.0497852]
[1754150172022,0.91386704,113240.0,113230.0,0.0497852]
[1754150172231,1.89925682,113240.0,113230.0,0.0497852]
[1754150173305,1.91825247,113240.0,113230.0,0.0497852]
[1754150173510,0.93286269,113240.0,113230.0,0.0497852]
[1754150173716,1.91825247,113240.0,113230.0,0.0497852]
[1754150173944,2.00245236,113240.0,113230.0,0.0497852]
[1754150174167,1.01706258,113240.0,113230.0,0.0497852]
[1754150174388,1.62239685,113240.0,113230.0,0.0497852]
[1754150174604,1.98862385,113240.0,113230.0,0.0497852]
[1754150175691,1.00323407,113240.0,113230.0,0.0497852]
[1754150175910,1.98862385,113240.0,113230.0,0.0497852]
[1754150176126,1.98552385,113240.0,113230.0,0.0497852]
[1754150176348,1.98552668,113240.0,113230.0,0.0497852]
[1754150177287,0.92976543,113240.0,113230.0,0.0549452]
[1754150177513,0.76820195,113240.0,113230.0,0.0549452]
[1754150177741,0.90944195,113240.0,113230.0,0.0549452]
[1754150177959,0.76820195,113240.0,113230.0,0.0549452]
[1754150178178,1.23790521,113240.0,113230.0,0.0549452]
[1754150178427,1.56636847,113240.0,113230.0,0.0549452]
[1754150178664,0.89295164,113240.0,113230.0,0.0549452]
[1754150178891,1.2214149,113240.0,113230.0,0.0549452]
[1754150179124,1.5416348,113240.0,113230.0,0.0549452]
[1754150179584,1.21325154,113240.0,113230.0,0.0549452]
[1754150180048,1.5417148,113240.0,113230.0,0.0549452]
[1754150180286,0.88478828,113240.0,113230.0,0.0549452]
[1754150180510,1.5417148,113240.0,113230.0,0.0549452]
[1754150181470,1.62591469,113240.0,113230.0,0.0549452]
[1754150181712,0.96898817,113240.0,113230.0,0.0549452]
[1754150181936,0.51856128,113240.0,113230.0,0.0549452]
[1754150182194,1.1754878,113240.0,113230.0,0.0549452]
[1754150182423,0.51856128,113240.0,113230.0,0.0549452]
[1754150182643,1.5417148,113240.0,113230.0,0.0549452]
[1754150184223,1.52788638,113240.0,113230.0,0.0549452]
[1754150184454,1.16165938,113240.0,113230.0,0.0549452]
[1754150184722,1.52788638,113240.0,113230.0,0.0549452]
[1754150185608,0.87095986,113240.0,113230.0,0.0549452]
[1754150185825,1.52788638,113240.0,113230.0,0.0549452]
[1754150186491,1.16165938,113240.0,113230.0,0.0549452]
[1754150186700,1.52788638,113240.0,113230.0,0.0549452]
[1754150187182,1.54171424,113240.0,113230.0,0.0549452]
[1754150187678,1.17548724,113240.0,113230.0,0.0549452]
[1754150187902,1.54171424,113240.0,113230.0,0.0549452]
[1754150188593,1.17548724,113240.0,113230.0,0.0549452]
[1754150188843,1.54171424,113240.0,113230.0,0.0549452]
[1754150190382,1.62591413,113240.0,113230.0,0.0549452]
[1754150191061,1.62790413,113240.0,113230.0,0.0549452]
[1754150192056,1.54370424,113240.0,113230.0,0.0549452]
[1754150192523,1.54318424,113240.0,113230.0,0.0549452]
[1754150193673,1.54318424,113240.0,113230.0,0.0549952]
[1754150194611,1.40238424,113240.0,113230.0,0.0549952]
[1754150194847,1.54306424,113240.0,113230.0,0.0549952]
[1754150195978,1.17683724,113240.0,113230.0,0.0549952]
[1754150196178,1.54306424,113240.0,113230.0,0.0549952]
[1754150196694,1.55130858,113240.0,113230.0,0.0518352]
[1754150196920,1.63865847,113240.0,113230.0,0.0498352]
[1754150197386,1.63454061,113240.0,113230.0,0.0166052]
[1754150197615,1.65103009,113240.0,113230.0,0.0166052]
[1754150200431,1.66485835,113240.0,113230.0,0.0166052]
[1754150201137,1.58065846,113240.0,113230.0,0.0166052]
[1754150202603,1.90912172,113240.0,113230.0,0.0166052]
[1754150202810,1.58065846,113240.0,113230.0,0.0166052]
[1754150206896,1.57094846,113240.0,113230.0,0.0166052]
[1754150207779,1.54827512,113240.0,113230.0,0.0166052]
[1754150207995,1.65516523,113240.0,113230.0,0.0166052]
[1754150208519,2.00263789,113240.0,113230.0,0.0166052]
[1754150208750,1.67417463,113240.0,113230.0,0.0166052]
[1754150210568,1.01724811,113240.0,113230.0,0.0166052]
[1754150210763,1.67417463,113240.0,113230.0,0.0492952]
[1754150211200,2.00263789,113240.0,113230.0,0.0492952]
[1754150211904,1.67417463,113240.0,113230.0,0.0492952]
[1754150212352,1.01724811,113240.0,113230.0,0.0492952]
[1754150212582,1.67417463,113240.0,113230.0,0.0492952]
[1754150213318,1.98047849,113240.0,113230.0,0.0543052]
[1754150213548,1.0140945,113240.0,113230.0,0.0543052]
[1754150213766,1.56781534,113240.0,113230.0,0.0543052]
[1754150213986,1.56781534,113240.0,113230.0,0.0512852]
[1754150214435,1.56781534,113240.0,113230.0,0.0543052]
[1754150214873,1.56582534,113240.0,113230.0,0.0543052]
[1754150215889,1.55199708,113240.0,113230.0,0.0543052]
[1754150216565,1.18577008,113240.0,113230.0,0.0543052]
[1754150216816,1.55199708,113240.0,113230.0,0.0543052]
[1754150217289,1.63619697,113240.0,113230.0,0.0543052]
[1754150217521,0.98143045,113240.0,113230.0,0.0543052]
[1754150217725,1.63835697,113240.0,113230.0,0.0543052]
[1754150218203,1.63835697,113240.0,113230.0,0.0512852]
[1754150218389,1.63795697,113240.0,113230.0,0.0512852]
[1754150218861,1.6517856,113240.0,113230.0,0.0492952]
[1754150220040,1.32332234,113240.0,113230.0,0.0492952]
[1754150220266,1.6550156,113240.0,113230.0,0.0492952]
[1754150220711,1.6517856,113240.0,113230.0,0.0492952]
[1754150222555,1.98024886,113240.0,113230.0,0.0492952]
[1754150222754,1.98347886,113240.0,113230.0,0.0492952]
[1754150222972,1.6550156,113240.0,113230.0,0.0492952]
[1754150223180,1.98347886,113240.0,113230.0,0.0492952]
[1754150223459,0.99808908,113240.0,113230.0,0.0489552]
[1754150223900,1.6517856,113240.0,113230.0,0.0489552]
[1754150224136,1.65180001,113240.0,113230.0,0.0489552]
[1754150225279,1.67081921,113240.0,113230.0,0.0489552]
[1754150229985,1.67082892,113240.0,113230.0,0.0489552]
[1754150230171,1.99929218,113240.0,113230.0,0.0489552]
[1754150230853,1.63306518,113240.0,113230.0,0.0489552]
[1754150231079,1.99929218,113240.0,113230.0,0.0489552]
[1754150232202,1.98278139,113240.0,113230.0,0.0489552]
[1754150232427,1.99930067,113240.0,113230.0,0.0489552]
[1754150232635,1.67083741,113240.0,113230.0,0.0489552]
[1754150232864,1.6543255,113240.0,113230.0,0.0489552]
[1754150233096,1.67084581,113240.0,113230.0,0.0489552]
[1754150234605,1.67084598,113240.0,113230.0,0.0489552]
[1754150235848,1.67084679,113240.0,113230.0,0.0489552]
[1754150238291,1.30461979,113240.0,113230.0,0.0489552]
[1754150238506,1.67084679,113240.0,113230.0,0.0489552]
[1754150240703,2.00254005,113240.0,113230.0,0.0489552]
[1754150240922,1.67407679,113240.0,113230.0,0.0489552]
[1754150241142,2.00254005,113240.0,113230.0,0.0489552]
[1754150241391,1.67084679,113240.0,113230.0,0.0489552]
[1754150242331,0.64769327,113240.0,113230.0,0.0489552]
[1754150242552,1.67084679,113240.0,113230.0,0.0489552]
[1754150243835,1.65701816,113240.0,113230.0,0.0489552]
[1754150244709,1.65702638,113240.0,113230.0,0.0489552]
[1754150244933,1.98869964,113240.0,113230.0,0.0166052]
[1754150245424,1.98548964,113240.0,113230.0,0.0479152]
[1754150246057,1.00009986,113240.0,113230.0,0.0479152]
[1754150246268,1.65702638,113240.0,113230.0,0.0479152]
[1754150246911,1.67085467,113240.0,113230.0,0.0479152]
[1754150249843,1.8474707,113240.0,113230.0,0.0479152]
[1754150250069,2.17914396,113240.0,113230.0,0.0166052]
[1754150250313,2.18655396,113240.0,113230.0,0.0166052]
[1754150250814,2.00993793,113240.0,113230.0,0.0166052]
[1754150251047,2.00993793,113240.0,113230.0,0.0146052]
[1754150251286,2.01093793,113240.0,113230.0,0.0146052]
[1754150251514,2.18755396,113240.0,113230.0,0.0146052]
[1754150251740,2.17914396,113240.0,113230.0,0.0146052]
[1754150251957,2.18214396,113240.0,113230.0,0.0146052]
[1754150252180,2.00552793,113240.0,113230.0,0.0146052]
[1754150252402,2.00552793,113240.0,113230.0,0.0459152]
[1754150252605,1.92132804,113240.0,113230.0,0.0459152]
[1754150252840,1.55510104,113240.0,113230.0,0.0459152]
[1754150253270,2.09794407,113240.0,113230.0,0.0146052]
[1754150253484,2.09894407,113240.0,113230.0,0.0146052]
[1754150253701,1.73271707,113240.0,113230.0,0.0459152]
[1754150253912,2.18314396,113240.0,113230.0,0.0146052]
[1754150254158,2.19055396,113240.0,113230.0,0.0146052]
[1754150254642,2.18314396,113240.0,113230.0,0.0146052]
[1754150254866,2.19055396,113240.0,113230.0,0.0146052]
[1754150255083,2.18314396,113240.0,113230.0,0.0146052]
[1754150255536,2.18314396,113240.0,113230.0,0.0459152]
[1754150256237,2.18312031,113240.0,113230.0,0.0459152]
[1754150257948,2.18312031,113240.0,113230.0,0.0146052]
[1754150258413,2.09892042,113240.0,113230.0,0.0459152]
[1754150258639,1.78202439,113240.0,113230.0,0.0459152]
[1754150258882,2.09554647,113240.0,113230.0,0.0509752]
[1754150259415,1.95542647,113240.0,113230.0,0.0509752]
[1754150259653,2.09554647,113240.0,113230.0,0.0509752]
[1754150260636,2.17974636,113240.0,113230.0,0.0509752]
[1754150262247,2.17974636,113240.0,113230.0,0.0479752]
[1754150262916,2.17974636,113240.0,113230.0,0.0509752]
[1754150263145,2.17974636,113240.0,113230.0,0.0479752]
[1754150263356,2.18295636,113240.0,113230.0,0.0146052]
[1754150263570,2.18295636,113240.0,113230.0,0.0459152]
[1754150263999,2.17974636,113240.0,113230.0,0.0459152]
[1754150264911,2.18295636,113240.0,113230.0,0.0459152]
[1754150265394,2.17974636,113240.0,113230.0,0.0459152]
[1754150267632,2.17971315,113240.0,113230.0,0.0459152]
[1754150267843,1.81348615,113240.0,113230.0,0.0459152]
[1754150268054,2.17971315,113240.0,113230.0,0.0459152]
[1754150268490,1.18049508,113240.0,113230.0,0.0459152]
[1754150268709,2.16588486,113240.0,113230.0,0.0479752]
[1754150268907,1.80865586,113240.0,113230.0,0.0509752]
[1754150269119,1.83522286,113240.0,113230.0,0.0509752]
[1754150269756,1.75102297,113240.0,113230.0,0.0509752]
[1754150269987,1.38479597,113240.0,113230.0,0.0509752]
[1754150270211,1.75102297,113240.0,113230.0,0.0509752]
[1754150270427,1.75102352,113240.0,113230.0,0.0509752]
[1754150270647,1.75102352,113240.0,113230.0,0.0479752]
[1754150270882,2.09102352,113240.0,113230.0,0.0479752]
[1754150271100,2.1048525,113240.0,113230.0,0.0479752]
[1754150271964,2.18905239,113240.0,113230.0,0.0479752]
[1754150272401,2.18905239,113240.0,113230.0,0.0509752]
[1754150274138,2.18905239,113240.0,113230.0,0.0479752]
[1754150274788,2.18905239,113240.0,113230.0,0.0509752]
[1754150276206,2.18285728,113240.0,113230.0,0.0509752]
[1754150276416,2.18904269,113240.0,113230.0,0.0509752]
[1754150277270,2.19209269,113240.0,113230.0,0.0146052]
[1754150277870,2.18904269,113240.0,113230.0,0.0466352]
[1754150278343,2.18896269,113240.0,113230.0,0.0466352]
[1754150280047,2.17513371,113240.0,113230.0,0.0466352]
[1754150280669,2.17818371,113240.0,113230.0,0.0466352]
[1754150281299,2.18632371,113240.0,113230.0,0.0146052]
[1754150281856,2.17818371,113240.0,113230.0,0.0146052]
[1754150282030,2.17818371,113240.0,113230.0,0.0466352]
[1754150282465,2.09093382,113240.0,113230.0,0.0466352]
[1754150282664,2.104763,113240.0,113230.0,0.0466352]
[1754150283534,3.10104278,113240.0,113230.0,0.00544944]
[1754150283750,0.88292105,113190.0,113180.0,4.001e-05]
[1754150283917,3.54430118,113190.0,113180.0,4.001e-05]
[1754150284122,0.88296789,113160.0,113150.0,0.040551]
[1754150284347,2.70908191,113160.0,113150.0,0.008521]
[1754150284575,1.42948387,113160.0,113150.0,0.042621]
[1754150284813,1.44430702,113160.0,113150.0,0.03376524]
[1754150285046,1.09690872,113160.0,113150.0,0.03376524]
[1754150285259,1.76842435,113160.0,113150.0,0.03424391]
[1754150285470,1.95605524,113160.0,113150.0,0.00047867]
[1754150285673,2.07109796,113160.0,113150.0,0.00047867]
[1754150285888,1.92125644,113160.0,113150.0,0.00047867]
[1754150286139,0.88298351,113150.0,113140.0,0.00024]
[1754150286354,0.83668904,113150.0,113140.0,0.00024]
[1754150286560,1.22125503,113150.0,113140.0,0.03227]
[1754150286767,1.30545492,113150.0,113140.0,0.03227]
[1754150286981,1.21304757,113150.0,113140.0,0.03227]
[1754150287179,1.21304757,113150.0,113130.0,0.00024]
[1754150287180,0.34,113140.0,113130.0,0.00024]
[1754150287404,1.19081969,113140.0,113130.0,0.00024]
[1754150287615,1.18776969,113140.0,113130.0,0.03227]
[1754150287819,1.70434238,113140.0,113130.0,0.00024]
[1754150288032,1.70434238,113140.0,113120.0,0.05050749]
[1754150288033,2.27603177,113140.0,113120.0,0.05050749]
[1754150288251,1.70248333,113130.0,113120.0,0.01847749]
[1754150288462,1.70455333,113130.0,113120.0,0.00962173]
[1754150288889,2.23241295,113130.0,113120.0,0.00076597]
[1754150289095,2.23241295,113130.0,113120.0,1e-08]
[1754150289306,2.23241295,113130.0,113090.0,0.0359127]
[1754150289307,0.89187055,113120.0,113090.0,0.0359127]
[1754150289530,1.03720755,113100.0,113090.0,0.0379827]
[1754150289714,0.86046226,113100.0,113090.0,0.0379827]
[1754150289994,0.85839226,113100.0,113090.0,0.0411927]
[1754150290185,0.87223787,113100.0,113090.0,0.0411927]
[1754150290394,0.73215787,113100.0,113090.0,0.0411927]
[1754150290606,0.73263719,113100.0,113090.0,0.37010325]
[1754150290807,0.16653019,113100.0,113090.0,0.37010325]
[1754150291021,0.01107493,113100.0,113090.0,0.6990138]
[1754150291268,0.00782493,113100.0,113090.0,0.7883682]
[1754150291444,0.00628493,113100.0,113090.0,0.7883682]
[1754150291645,0.00047932,113100.0,113090.0,0.87556809]
[1754150291857,0.00047932,113100.0,113090.0,0.54665754]
[1754150292272,0.34047932,113100.0,113090.0,0.1335471]
[1754150292515,0.34047932,113100.0,113090.0,0.05843172]
[1754150292516,0.70670632,113100.0,113090.0,0.05843172]
[1754150292703,0.71879158,113100.0,113090.0,0.0409827]
[1754150293147,0.72391158,113100.0,113090.0,0.0409827]
[1754150293358,0.80811147,113100.0,113090.0,0.0389127]
[1754150293579,0.80811147,113100.0,113090.0,0.0359127]
[1754150294017,0.80911147,113100.0,113090.0,0.0429127]
[1754150294232,0.44288447,113100.0,113090.0,0.0429127]